bitfinex/quotes_ETHUSD_20250909
["timestamp","ask_amount","ask_price","bid_price","bid_amount"]
[1757420495332,36.99897434,4359.0,4358.9,33.0]
[1757420495549,40.12767434,4359.0,4358.9,33.0]
[1757420496054,40.24207434,4359.0,4358.9,33.0]
[1757420496956,2.29420941,4358.8,4358.7,3.0]
[1757420497263,2.29420941,4358.8,4358.7,36.845]
[1757420497767,3.04680941,4358.8,4358.7,36.845]
[1757420498061,5.42290941,4358.8,4358.7,36.845]
[1757420498856,5.42290941,4358.8,4358.7,33.0]
[1757420499059,5.42290941,4358.8,4358.7,36.845]
[1757420499979,5.42290941,4358.8,4358.7,33.0]
[1757420500152,7.4934234,4358.8,4358.7,6.845]
[1757420500356,7.3121234,4358.8,4358.7,6.845]
[1757420500557,7.6078234,4358.8,4358.7,6.845]
[1757420502777,2.40860941,4358.8,4358.7,6.845]
[1757420503177,5.53730941,4358.8,4358.7,6.845]
[1757420503749,5.53730941,4358.8,4358.7,3.0]
[1757420504093,5.53830941,4358.8,4358.7,6.844]
[1757420507885,5.08140941,4358.8,4358.7,6.844]
[1757420508073,7.34931738,4358.8,4358.7,6.844]
[1757420508586,7.80621738,4358.8,4358.7,6.844]
[1757420509089,4.85881738,4358.8,4358.7,6.844]
[1757420509489,2.59090941,4358.8,4358.7,6.844]
[1757420509856,4.96700941,4358.8,4358.7,6.844]
[1757420510076,5.42390941,4358.8,4358.7,6.844]
[1757420513078,5.42390941,4358.8,4358.7,3.0]
[1757420513278,5.42390941,4358.8,4358.7,6.844]
[1757420513960,7.69181738,4358.8,4358.7,6.844]
[1757420514159,7.69181738,4358.8,4358.7,3.0]
[1757420514360,7.69181738,4358.8,4358.7,6.844]
[1757420515277,4.56311738,4358.8,4358.7,6.844]
[1757420517379,5.02001738,4358.8,4358.7,6.844]
[1757420517580,5.31571738,4358.8,4358.7,6.844]
[1757420517906,7.69181738,4358.8,4358.7,6.844]
[1757420519194,7.69181738,4358.8,4358.3,1.762]
[1757420519195,2.29441997,4358.4,4358.3,1.762]
[1757420519369,5.42311997,4358.4,4358.3,8.606]
[1757420519569,5.42311997,4358.4,4358.3,18.606]
[1757420519766,5.42311997,4358.4,4358.3,35.0736]
[1757420519767,2.29441997,4358.4,4358.3,35.0736]
[1757420519965,2.29441997,4358.4,4358.3,8.9176]
[1757420520206,2.29441997,4358.4,4358.3,8.606]
[1757420520505,3.04621997,4358.4,4358.3,8.606]
[1757420520710,2.29361997,4358.4,4358.3,8.606]
[1757420520877,2.29361997,4358.4,4358.3,8.9176]
[1757420521072,2.29361997,4358.4,4358.3,8.606]
[1757420521414,2.29361997,4358.4,4358.3,8.9176]
[1757420521773,2.75891997,4358.4,4358.3,8.606]
[1757420522103,2.29361997,4358.4,4358.3,8.606]
[1757420522504,3.06081997,4358.4,4358.3,8.606]
[1757420522703,6.28552604,4358.4,4358.3,8.605]
[1757420523100,3.35782604,4358.4,4358.3,8.605]
[1757420523404,6.28552604,4358.4,4358.3,8.605]
[1757420523804,3.82312604,4358.4,4358.3,8.605]
[1757420524004,3.05592604,4358.4,4358.3,8.605]
[1757420524206,2.29361997,4358.4,4358.3,8.605]
[1757420525486,2.29361997,4358.4,4358.3,8.9081]
[1757420525893,2.29361997,4358.4,4358.3,5.0651]
[1757420526112,2.29361997,4358.4,4358.3,8.9081]
[1757420526895,2.29361997,4358.4,4358.3,5.0651]
[1757420527099,2.29361997,4358.4,4358.3,8.9081]
[1757420527382,2.29426752,4358.7,4358.4,3.0]
[1757420527598,0.1144,4358.4,4358.3,2.0651]
[1757420527777,0.1144,4358.4,4358.3,8.9081]
[1757420528179,0.0618,4358.8,4358.4,3.0]
[1757420528387,0.0618,4358.8,4358.6,3.0]
[1757420528586,0.0618,4358.8,4358.5,43.86594367]
[1757420528587,0.0618,4358.8,4358.7,47.16904262]
[1757420528792,0.0618,4358.8,4358.7,37.1461]
[1757420529080,0.0618,4358.8,4358.7,37.3473]
[1757420529281,24.51535725,4359.0,4358.9,1.37649406]
[1757420529480,24.48389659,4359.0,4358.9,40.18059406]
[1757420529686,24.45243593,4359.0,4358.9,40.18059406]
[1757420531000,24.45243593,4359.0,4358.9,38.52259406]
[1757420531326,24.45243593,4359.0,4358.9,40.18059406]
[1757420531706,24.45243593,4359.0,4358.9,39.97939406]
[1757420531891,24.45243593,4359.0,4358.9,40.18059406]
[1757420533024,24.45243593,4359.0,4358.9,37.1451]
[1757420533401,24.45243593,4359.0,4358.9,33.3031]
[1757420533725,24.45243593,4359.0,4358.9,37.1451]
[1757420534530,24.45243593,4359.0,4358.9,38.52159406]
[1757420534696,24.45243593,4359.0,4358.9,37.1451]
[1757420534889,24.45243593,4359.0,4358.9,33.3031]
[1757420535094,24.45243593,4359.0,4358.9,37.1451]
[1757420535318,24.45243593,4359.0,4358.9,38.52159406]
[1757420536798,24.45243593,4359.0,4358.9,37.1451]
[1757420537395,24.45243593,4359.0,4358.9,38.52159406]
[1757420539528,24.45243593,4359.0,4358.9,38.63599406]
[1757420539734,24.45243593,4359.0,4358.9,38.63499406]
[1757420539923,24.45243593,4359.0,4358.9,34.79399406]
[1757420540117,24.45243593,4359.0,4358.9,38.63499406]
[1757420540516,24.45243593,4359.0,4358.9,37.2585]
[1757420541034,24.45243593,4359.0,4358.9,38.63499406]
[1757420541699,24.45243593,4359.0,4358.9,40.29299406]
[1757420542834,24.45243593,4359.0,4358.9,40.09179406]
[1757420543034,24.45243593,4359.0,4358.9,38.63499406]
[1757420544032,24.45243593,4359.0,4358.9,40.09179406]
[1757420544235,24.45243593,4359.0,4358.9,40.39234333]
[1757420544436,24.45243593,4359.0,4358.9,40.59354333]
[1757420546510,24.45163593,4359.0,4358.9,40.59354333]
[1757420546838,24.45163593,4359.0,4358.9,40.82314333]
[1757420547160,18.56852951,4359.0,4358.9,40.82314333]
[1757420547339,18.56852951,4359.0,4358.9,10.82314333]
[1757420547643,18.56852951,4359.0,4358.9,40.52259406]
[1757420547843,18.56852951,4359.0,4358.9,38.63499406]
[1757420548215,18.56852951,4359.0,4358.9,34.79399406]
[1757420548411,18.56852951,4359.0,4358.9,38.63399406]
[1757420549026,18.56852951,4359.0,4358.9,37.2575]
[1757420549246,18.56852951,4359.0,4358.9,38.63399406]
[1757420549812,18.56852951,4359.0,4358.9,34.79399406]
[1757420550012,18.56852951,4359.0,4358.9,38.63399406]
[1757420552514,18.56852951,4359.0,4358.9,34.49089406]
[1757420552714,21.28512951,4359.0,4358.9,38.33089406]
[1757420553209,18.56852951,4359.0,4358.9,38.33089406]
[1757420553413,18.56852951,4359.0,4358.9,38.63879406]
[1757420554764,18.56852951,4359.0,4358.9,38.33089406]
[1757420555261,19.04332951,4359.0,4358.9,38.33089406]
[1757420556542,18.56852951,4359.0,4358.9,38.33089406]
[1757420558945,18.56852951,4359.0,4358.9,34.49089406]
[1757420559149,18.56852951,4359.0,4358.9,38.33089406]
[1757420560353,18.56852951,4359.0,4358.9,38.63879406]
[1757420560679,18.56852951,4359.0,4358.9,38.33089406]
[1757420561242,14.1561997,4359.0,4358.9,38.63879406]
[1757420561442,13.16642913,4359.0,4358.9,42.94639137]
[1757420561748,13.16642913,4359.0,4358.9,42.38345036]
[1757420561960,13.16642913,4359.0,4358.9,42.61305036]
[1757420562165,10.80699983,4359.0,4358.9,42.61305036]
[1757420562481,7.71380842,4359.0,4358.9,42.61305036]
[1757420562871,7.71380842,4359.0,4358.9,40.64863581]
[1757420563075,7.71380842,4359.0,4358.9,40.11848654]
[1757420563262,7.71380842,4359.0,4358.9,39.32548654]
[1757420564179,10.90520842,4359.0,4358.9,39.01758654]
[1757420564346,7.71380842,4359.0,4358.9,38.32989406]
[1757420564984,10.90520842,4359.0,4358.9,38.32989406]
[1757420565477,7.71380842,4359.0,4358.9,38.63779406]
[1757420565865,7.71380842,4359.0,4358.9,40.37959435]
[1757420566175,7.71380842,4359.0,4358.9,38.32989406]
[1757420566478,7.71380842,4359.0,4358.9,39.98989406]
[1757420566676,7.71380842,4359.0,4358.9,45.87859435]
[1757420566854,7.71380842,4359.0,4358.9,43.82889406]
[1757420567484,8.18860842,4359.0,4358.9,43.82889406]
[1757420567888,8.49910842,4359.0,4358.9,43.82889406]
[1757420568088,10.90520842,4359.0,4358.9,39.98989406]
[1757420568486,10.90520842,4359.0,4358.9,43.82889406]
[1757420569465,7.71380842,4359.0,4358.9,43.82889406]
[1757420570292,7.71380842,4359.0,4358.9,44.13679406]
[1757420570667,7.71380842,4359.0,4358.9,40.29779406]
[1757420570892,7.71380842,4359.0,4358.9,44.13579406]
[1757420571594,7.71380842,4359.0,4358.9,43.82789406]
[1757420571959,8.18860842,4359.0,4358.9,43.82789406]
[1757420572290,7.71380842,4359.0,4358.9,44.13579406]
[1757420572659,7.71300842,4359.0,4358.9,44.13579406]
[1757420572904,7.71300842,4359.0,4358.9,43.82789406]
[1757420573562,7.71300842,4359.0,4358.9,13.82789406]
[1757420573860,7.71300842,4359.0,4358.9,44.13579406]
[1757420574769,7.71300842,4359.0,4358.9,43.82789406]
[1757420574959,10.90440842,4359.0,4358.9,43.82789406]
[1757420575903,10.90440842,4359.0,4358.9,45.58689406]
[1757420580484,10.90440842,4359.0,4358.9,37.3724]
[1757420580734,13.17231639,4359.0,4358.9,37.3724]
[1757420581032,13.17231639,4359.0,4358.9,37.258]
[1757420581201,15.46642054,4359.0,4358.9,41.096]
[1757420581518,15.46642054,4359.0,4358.9,7.258]
[1757420581694,2.40855678,4358.9,4358.8,0.002]
[1757420581901,4.67646475,4358.9,4358.8,5.599]
[1757420582081,7.70456475,4358.9,4358.8,8.599]
[1757420584580,3.0281,4358.9,4358.8,38.599]
[1757420584779,5.32225678,4358.9,4358.8,38.599]
[1757420586018,2.5868,4358.9,4358.8,38.599]
[1757420586220,3.0281,4358.9,4358.8,38.599]
[1757420586619,0.7455,4358.9,4358.8,38.599]
[1757420586819,7.71300842,4359.0,4358.9,3.0]
[1757420587166,9.99560842,4359.0,4358.9,33.0]
[1757420587367,10.31260842,4359.0,4358.9,33.0]
[1757420587568,10.75390842,4359.0,4358.9,33.0]
[1757420587769,13.04801257,4359.0,4358.9,33.0]
[1757420588814,13.04801257,4359.0,4358.9,36.838]
[1757420590754,2.29415678,4358.9,4358.8,1.761]
[1757420591055,2.29415678,4358.9,4358.8,8.599]
[1757420591056,2.73545678,4358.9,4358.8,8.599]
[1757420591256,5.32225678,4358.9,4358.8,8.599]
[1757420592718,5.32225678,4358.9,4358.8,4.761]
[1757420592919,5.32225678,4358.9,4358.8,8.599]
[1757420593158,7.59016475,4358.9,4358.8,8.599]
[1757420597306,7.72580842,4359.0,4358.9,33.0]
[1757420597457,7.72580842,4359.0,4358.9,33.3051]
[1757420598873,7.72500842,4359.0,4358.9,33.3051]
[1757420603096,7.72500842,4359.0,4358.9,35.59925678]
[1757420604279,7.72500842,4359.0,4358.9,33.3051]
[1757420604481,7.72500842,4359.0,4358.9,36.837]
[1757420604704,10.75310842,4359.0,4358.9,36.837]
[1757420604905,10.75310842,4359.0,4358.9,33.0]
[1757420604906,12.12144127,4359.0,4358.9,33.0]
[1757420605106,14.41554542,4359.0,4358.9,3.0]
[1757420605314,14.41554542,4359.0,4358.9,6.837]
[1757420608323,14.41554542,4359.0,4358.9,3.0]
[1757420608625,14.41554542,4359.0,4358.9,6.837]
[1757420609833,14.41554542,4359.0,4358.9,3.0]
[1757420610001,14.41554542,4359.0,4358.9,6.837]
[1757420610206,14.41554542,4359.0,4358.9,3.837]
[1757420610721,14.41554542,4359.0,4358.9,6.837]
[1757420611891,14.41554542,4359.0,4358.9,3.0]
[1757420612124,14.41554542,4359.0,4358.9,6.837]
[1757420614427,14.43214542,4359.0,4358.9,6.837]
[1757420614650,9.09334127,4359.0,4358.9,6.837]
[1757420614940,7.72500842,4359.0,4358.9,37.1321]
[1757420615842,7.83940842,4359.0,4358.9,37.1321]
[1757420615992,7.72500842,4359.0,4358.9,37.3333]
[1757420616224,7.72500842,4359.0,4358.9,41.08425678]
[1757420619679,7.72500842,4359.0,4358.9,39.42625678]
[1757420619968,7.72500842,4359.0,4358.9,37.1321]
[1757420620134,7.72500842,4359.0,4358.9,39.42625678]
[1757420620959,7.72500842,4359.0,4358.9,37.1321]
[1757420621143,7.72500842,4359.0,4358.9,39.42625678]
[1757420624170,7.72500842,4359.0,4358.9,3.836]
[1757420624171,13.20781639,4359.0,4358.9,3.836]
[1757420624346,13.23401257,4359.0,4358.8,1.761]
[1757420624551,0.4579,4358.9,4358.8,1.761]
[1757420624749,0.7702,4358.9,4358.8,8.597]
[1757420624961,5.50825678,4358.9,4358.8,8.597]
[1757420625275,7.77616475,4358.9,4358.8,4.761]
[1757420625445,7.77616475,4358.9,4358.8,8.597]
[1757420627757,5.48200797,4358.9,4358.8,8.597]
[1757420627955,0.3123,4358.9,4358.8,38.597]
[1757420628258,7.72500842,4359.0,4358.9,3.0]
[1757420628571,8.18290842,4359.0,4358.9,3.0]
[1757420628785,8.49520842,4359.0,4358.9,3.0]
[1757420630193,10.93990842,4359.0,4358.9,3.0]
[1757420631009,14.49554628,4359.0,4358.9,3.0]
[1757420631875,12.20144213,4359.0,4358.9,3.0]
[1757420632064,12.20144213,4359.0,4358.8,1.761]
[1757420632263,12.20144213,4359.0,4358.9,33.836]
[1757420632264,11.59294628,4359.0,4358.9,33.836]
[1757420632513,11.59294628,4359.0,4358.9,3.0]
[1757420632911,14.49554628,4359.0,4358.9,6.836]
[1757420642699,14.03764628,4359.0,4358.9,6.836]
[1757420643016,7.72500842,4359.0,4358.9,37.1213]
[1757420643606,8.03270842,4359.0,4358.9,33.0]
[1757420643783,13.07501257,4359.0,4358.9,36.835]
[1757420644924,10.78090842,4359.0,4358.9,36.835]
[1757420645086,13.07501257,4359.0,4358.9,3.0]
[1757420645288,15.34292054,4359.0,4358.9,6.835]
[1757420647478,13.04881639,4359.0,4358.9,6.835]
[1757420648174,12.28702054,4359.0,4358.9,6.835]
[1757420648381,7.72500842,4359.0,4358.9,7.1203]
[1757420648908,7.72500842,4359.0,4358.9,6.835]
[1757420649803,8.16970842,4359.0,4358.9,6.835]
[1757420650716,7.72500842,4359.0,4358.9,6.835]
[1757420651111,7.72420842,4359.0,4358.9,6.835]
[1757420653481,10.32601257,4359.0,4358.9,6.835]
[1757420653700,8.47660842,4359.0,4358.9,3.0]
[1757420653899,10.78010842,4359.0,4358.9,6.835]
[1757420654118,10.76730842,4359.0,4358.9,6.8222]
[1757420654334,8.46380842,4359.0,4358.9,6.8222]
[1757420654534,8.15610842,4359.0,4358.9,2.9872]
[1757420654714,13.06141257,4359.0,4358.9,2.9872]
[1757420655242,13.06141257,4359.0,4358.9,6.8222]
[1757420655424,14.02340496,4359.0,4358.9,6.8222]
[1757420656203,14.02340496,4359.0,4358.9,2.9872]
[1757420656535,3.08615678,4358.9,4358.8,1.761]
[1757420656727,3.53085678,4358.9,4358.8,1.761]
[1757420656924,6.14205678,4358.9,4358.8,1.761]
[1757420657122,8.40996475,4358.9,4358.8,5.596]
[1757420659239,8.40996475,4358.9,4358.8,1.761]
[1757420659444,8.40996475,4358.9,4358.8,5.596]
[1757420659948,8.40996475,4358.9,4358.8,1.761]
[1757420660126,3.08636732,4358.5,4358.4,0.002]
[1757420660440,3.08636732,4358.5,4358.4,3.837]
[1757420660642,3.08641997,4358.4,4358.3,1e-08]
[1757420660845,4.8581168,4358.4,4358.3,1e-08]
[1757420661062,11.7490168,4358.4,4358.3,1e-08]
[1757420661271,11.53456354,4358.4,4358.3,1e-08]
[1757420661572,7.69956354,4358.4,4358.3,1e-08]
[1757420664170,6.90756354,4358.4,4358.3,1e-08]
[1757420664570,7.69956354,4358.4,4358.3,1e-08]
[1757420664941,7.69956354,4358.4,4358.0,0.002]
[1757420664942,3.08657791,4358.1,4358.0,1e-08]
[1757420665271,4.31543932,4358.1,4358.0,1e-08]
[1757420665439,7.46312064,4358.1,4358.0,1e-08]
[1757420677203,7.46232064,4358.1,4358.0,1e-08]
[1757420678604,6.67032064,4358.1,4358.0,1e-08]
[1757420680405,6.22562064,4358.1,4358.0,1e-08]
[1757420680566,7.48552064,4358.1,4358.0,1e-08]
[1757420681168,3.92212064,4358.1,4358.0,1e-08]
[1757420681372,3.83033932,4358.1,4358.0,1e-08]
[1757420681571,4.31463932,4358.1,4358.0,1e-08]
[1757420682183,3.52263932,4358.1,4358.0,1e-08]
[1757420682664,3.08577791,4358.1,4358.0,0.29450001]
[1757420683070,2.29377791,4358.1,4358.0,0.29450001]
[1757420683273,3.08577791,4358.1,4358.0,0.29450001]
[1757420686031,3.08677791,4358.1,4358.0,4.13050001]
[1757420687936,3.08677791,4358.1,4358.0,3.83500001]
[1757420688239,3.62490296,4358.1,4358.0,3.83500001]
[1757420689033,3.93320296,4358.1,4358.0,1e-08]
[1757420689215,4.40110296,4358.1,4358.0,3.83500001]
[1757420690158,3.62490296,4358.1,4358.0,3.83500001]
[1757420690636,4.40110296,4358.1,4358.0,3.83500001]
[1757420691037,6.83660296,4358.1,4358.0,3.83500001]
[1757420691400,6.83660296,4358.1,4358.0,1e-08]
[1757420691829,6.83660296,4358.1,4358.0,1.75000001]
[1757420692133,6.83660296,4358.1,4358.0,1e-08]
[1757420692907,6.92838323,4358.1,4358.0,1e-08]
[1757420694306,4.49288323,4358.1,4358.0,1e-08]
[1757420694639,3.93320296,4358.1,4358.0,1e-08]
[1757420694803,4.40110296,4358.1,4358.0,1e-08]
[1757420695000,6.83660296,4358.1,4358.0,1e-08]
[1757420696410,6.83660296,4358.1,4358.0,3.83500001]
[1757420697941,6.83660296,4358.1,4358.0,1e-08]
[1757420698709,7.05110083,4358.1,4358.0,1e-08]
[1757420699140,10.88610083,4358.1,4358.0,1e-08]
[1757420700831,0.53912505,4358.1,4358.0,4.12950001]
[1757420701061,0.001,4358.1,4358.0,4.12950001]
[1757420702028,2.29557791,4358.1,4358.0,4.12950001]
[1757420702616,0.001,4358.1,4358.0,0.29450001]
[1757420702816,2.29557791,4358.1,4358.0,3.84950001]
[1757420703341,2.29477791,4358.1,4358.0,3.84950001]
[1757420704326,2.83290398,4358.1,4358.0,3.55500001]
[1757420704530,2.29477791,4358.1,4358.0,3.55500001]
[1757420704731,0.0002,4358.1,4358.0,3.85940001]
[1757420705212,2.29477791,4358.1,4358.0,3.85940001]
[1757420705464,2.29477791,4358.1,4358.0,3.55500001]
[1757420705676,2.29477791,4358.1,4358.0,1e-08]
[1757420705851,2.29477791,4358.1,4358.0,3.83500001]
[1757420706033,2.29477791,4358.1,4358.0,1e-08]
[1757420706234,6.8395049,4358.1,4358.0,1e-08]
[1757420707880,3.6721049,4358.1,4358.0,0.30440001]
[1757420708079,3.6721049,4358.1,4358.0,1e-08]
[1757420709183,3.6721049,4358.1,4358.0,3.83500001]
[1757420709384,0.0002,4358.1,4358.0,38.79820001]
[1757420710470,0.0002,4358.1,4358.0,34.96320001]
[1757420710659,0.0002,4358.1,4358.0,38.80620001]
[1757420711803,0.0002,4358.1,4358.0,41.10083057]
[1757420712358,0.0002,4358.1,4358.0,38.80620001]
[1757420713264,0.0002,4358.1,4358.0,34.96320001]
[1757420713459,0.0002,4358.1,4358.0,38.80420001]
[1757420713656,0.0002,4358.1,4358.0,37.14540001]
[1757420714067,0.0002,4358.1,4358.0,37.34740001]
[1757420714487,0.0002,4358.1,4358.0,33.30440001]
[1757420714692,0.0002,4358.1,4358.0,7.14440001]
[1757420716206,1.0861,4358.1,4358.0,1e-08]
[1757420716412,3.9596,4358.1,4358.0,3.84000001]
[1757420716583,4.35556,4358.1,4358.0,6.84000001]
[1757420716972,6.65013791,4358.1,4358.0,3.84000001]
[1757420717672,4.35556,4358.1,4358.0,3.84000001]
[1757420717873,1.95406,4358.1,4358.0,3.84000001]
[1757420718317,4.24863791,4358.1,4358.0,3.84000001]
[1757420718787,1.95406,4358.1,4358.0,3.84000001]
[1757420719504,1.18816,4358.1,4358.0,4.14440001]
[1757420719680,0.7922,4358.1,4358.0,4.14440001]
[1757420720008,0.0002,4358.1,4358.0,8.80320001]
[1757420720305,0.0002,4358.1,4358.0,21.09783057]
[1757420720471,0.0002,4358.1,4358.0,41.09783057]
[1757420724001,0.0002,4358.1,4358.0,38.80320001]
[1757420724197,0.0002,4358.1,4358.0,38.60120001]
[1757420724401,0.0002,4358.1,4358.0,40.89583057]
[1757420725144,0.0002,4358.1,4358.0,37.14440001]
[1757420725320,0.0002,4358.1,4358.0,3.30440001]
[1757420725520,0.0002,4358.1,4358.0,7.14440001]
[1757420726094,0.2941,4358.1,4358.0,6.83900001]
[1757420726428,3.9596,4358.1,4358.0,6.84000001]
[1757420727026,0.7922,4358.1,4358.0,6.84000001]
[1757420727327,0.7922,4358.1,4358.0,7.14440001]
[1757420729011,0.0002,4358.1,4358.0,7.14440001]
[1757420729547,0.0004,4358.6,4358.0,7.14440001]
[1757420729845,0.0004,4358.6,4358.0,37.14440001]
[1757420730157,0.0004,4358.6,4358.2,3.0]
[1757420730342,0.0004,4358.6,4358.4,3.0]
[1757420730548,0.0004,4358.6,4358.5,7.1454]
[1757420731342,0.0004,4358.6,4358.5,39.43976732]
[1757420731544,0.1148,4358.6,4358.5,39.43976732]
[1757420731852,0.1148,4358.6,4358.5,41.09856732]
[1757420732024,0.1148,4358.6,4358.5,38.8042]
[1757420732219,0.1148,4358.6,4358.5,37.1454]
[1757420733235,0.1148,4358.6,4358.5,33.3044]
[1757420733439,0.1148,4358.6,4358.5,37.1474]
[1757420734117,0.1148,4358.6,4358.5,36.842]
[1757420734463,0.1148,4358.6,4358.5,3.0]
[1757420734464,4.0162,4358.6,4358.5,3.0]
[1757420734665,4.64734725,4358.6,4358.5,8.603]
[1757420734815,6.94166193,4358.6,4358.5,8.603]
[1757420735190,6.94166193,4358.6,4358.5,1.76]
[1757420735327,6.94166193,4358.6,4358.5,5.603]
[1757420736523,4.64734725,4358.6,4358.5,5.603]
[1757420737390,6.94166193,4358.6,4358.5,5.603]
[1757420737755,4.64734725,4358.6,4358.5,5.603]
[1757420738080,6.94166193,4358.6,4358.5,5.603]
[1757420738439,4.64734725,4358.6,4358.5,5.603]
[1757420739030,6.94166193,4358.6,4358.5,5.603]
[1757420739437,6.94166193,4358.6,4358.5,5.601]
[1757420739935,4.64734725,4358.6,4358.5,5.601]
[1757420740285,6.94166193,4358.6,4358.5,5.601]
[1757420740766,6.94166193,4358.6,4358.5,1.76]
[1757420740974,6.94166193,4358.6,4358.5,5.601]
[1757420741385,6.94166193,4358.6,4358.5,1.76]
[1757420741548,6.94166193,4358.6,4358.5,5.6]
[1757420741755,6.94166193,4358.6,4358.5,1.76]
[1757420741968,6.94166193,4358.6,4358.5,5.6]
[1757420745394,6.82726193,4358.6,4358.5,5.6]
[1757420746796,1.42354725,4358.6,4358.5,8.9003]
[1757420747088,0.7924,4358.6,4358.5,8.6]
[1757420747452,0.0004,4358.6,4358.5,8.6]
[1757420747676,3.08671468,4358.6,4358.5,8.6]
[1757420747876,3.82091468,4358.6,4358.5,8.6]
[1757420748076,4.43252819,4358.6,4358.5,4.76]
[1757420748280,4.43252819,4358.6,4358.5,8.6]
[1757420748281,6.80772819,4358.6,4358.5,8.6]
[1757420750805,6.80772819,4358.6,4358.5,5.6]
[1757420750961,6.80772819,4358.6,4358.5,1.76]
[1757420751160,6.80772819,4358.6,4358.5,5.6]
[1757420751796,6.80772819,4358.6,4358.5,5.599]
[1757420752196,6.80772819,4358.6,4358.5,5.598]
[1757420754496,6.80772819,4358.6,4358.5,1.76]
[1757420754674,6.80772819,4358.6,4358.5,5.597]
[1757420755677,6.80692819,4358.6,4358.5,5.597]
[1757420757690,6.80692819,4358.6,4358.5,1.76]
[1757420757902,6.80692819,4358.6,4358.5,5.598]
[1757420758280,6.80792819,4358.6,4358.5,5.598]
[1757420758677,6.80792819,4358.6,4358.5,1.762]
[1757420758876,6.80792819,4358.6,4358.5,5.598]
[1757420759290,6.80792819,4358.6,4358.5,5.597]
[1757420767251,3.69852819,4358.6,4358.5,5.597]
[1757420767456,0.793,4358.6,4358.5,5.9111]
[1757420767877,3.40371468,4358.6,4358.5,1.762]
[1757420768036,6.29571468,4358.6,4358.5,5.276]
[1757420768232,6.63618615,4358.6,4358.5,5.276]
[1757420769547,6.63618615,4358.6,4358.5,5.597]
[1757420770258,3.42778615,4358.6,4358.5,5.597]
[1757420771948,4.17258615,4358.6,4358.5,5.597]
[1757420772660,3.42778615,4358.6,4358.5,5.597]
[1757420773163,0.793,4358.6,4358.5,5.9111]
[1757420773470,3.08731468,4358.6,4358.5,5.9111]
[1757420774123,3.08731468,4358.6,4358.5,1.762]
[1757420774357,3.83211468,4358.6,4358.5,5.495]
[1757420774556,5.97931468,4358.6,4358.5,5.495]
[1757420774763,0.793,4358.6,4358.5,5.8091]
[1757420775266,3.08731468,4358.6,4358.5,5.8091]
[1757420775467,0.793,4358.6,4358.5,5.8091]
[1757420775663,3.08731468,4358.6,4358.5,5.8091]
[1757420776369,3.08731468,4358.6,4358.5,5.495]
[1757420776567,3.08731468,4358.6,4358.5,1.762]
[1757420776743,3.08731468,4358.6,4358.5,5.597]
[1757420776940,3.08731468,4358.6,4358.5,1.762]
[1757420777138,3.08731468,4358.6,4358.5,5.597]
[1757420777344,0.793,4358.6,4358.5,5.9111]
[1757420777567,0.793,4358.6,4358.5,8.9111]
[1757420777928,1.41821625,4358.6,4358.5,4.762]
[1757420778135,6.60453093,4358.6,4358.5,8.597]
[1757420779733,6.60453093,4358.6,4358.5,5.597]
[1757420781371,3.39613093,4358.6,4358.5,5.597]
[1757420781738,3.39533093,4358.6,4358.5,5.597]
[1757420782560,3.08651468,4358.6,4358.5,5.9111]
[1757420783430,0.7922,4358.6,4358.5,5.9111]
[1757420784033,3.08651468,4358.6,4358.5,5.9111]
[1757420784436,0.7922,4358.6,4358.5,5.9111]
[1757420784749,0.7922,4358.6,4358.5,8.9111]
[1757420787269,0.7922,4358.6,4358.5,8.9239]
[1757420790761,0.7922,4358.6,4358.5,8.9229]
[1757420791164,0.001,4358.6,4358.5,8.9229]
[1757420793222,0.001,4358.6,4358.5,8.6088]
[1757420793914,0.001,4358.6,4358.5,4.7748]
[1757420794114,0.001,4358.6,4358.5,8.6088]
[1757420794691,0.001,4358.6,4358.5,5.0712]
[1757420794888,0.001,4358.6,4358.5,8.9052]
[1757420795090,0.001,4358.6,4358.5,5.0712]
[1757420795307,0.001,4358.6,4358.5,4.7748]
[1757420795495,0.001,4358.6,4358.5,8.6088]
[1757420796982,1.5622,4358.6,4358.5,8.6088]
[1757420800401,3.85651468,4358.6,4358.5,4.7748]
[1757420800597,6.67464899,4358.6,4358.5,5.6088]
[1757420801008,4.38033431,4358.6,4358.5,5.6088]
[1757420801211,6.67464899,4358.6,4358.5,5.6088]
[1757420801417,4.38033431,4358.6,4358.5,5.6088]
[1757420801705,6.67464899,4358.6,4358.5,5.6088]
[1757420801906,4.38033431,4358.6,4358.5,5.6088]
[1757420802108,6.67464899,4358.6,4358.5,5.6088]
[1757420802628,1.12963431,4358.6,4358.5,5.6088]
[1757420802795,0.793,4358.6,4358.5,5.9052]
[1757420803207,0.793,4358.6,4358.5,8.9052]
[1757420803734,0.793,4358.6,4358.5,8.6088]
[1757420804430,0.793,4358.6,4358.5,8.9052]
[1757420807252,0.001,4359.1,4358.6,33.0]
[1757420807424,41.8192,4359.2,4358.8,3.0]
[1757420807624,41.8192,4359.2,4359.1,2.59045152]
[1757420807843,41.8192,4359.2,4359.1,41.08325152]
[1757420808043,41.8184,4359.2,4359.1,41.08325152]
[1757420808359,39.8142699,4359.2,4359.1,41.08325152]
[1757420808519,39.33305598,4359.2,4359.1,41.08325152]
[1757420809256,39.33305598,4359.2,4359.1,38.7892]
[1757420810028,39.33305598,4359.2,4359.1,40.88125152]
[1757420810429,39.33305598,4359.2,4359.1,41.08325152]
[1757420810637,39.33305598,4359.2,4359.1,38.7892]
[1757420810838,39.33305598,4359.2,4359.1,37.1304]
[1757420813238,39.33405598,4359.2,4359.1,37.1304]
[1757420813861,39.33405598,4359.2,4359.1,40.88125152]
[1757420814066,39.33405598,4359.2,4359.1,41.08325152]
[1757420815750,39.33405598,4359.2,4359.1,11.08325152]
[1757420815988,39.33405598,4359.2,4359.1,41.08325152]
[1757420816152,39.33405598,4359.2,4359.1,40.88125152]
[1757420817399,39.33405598,4359.2,4359.1,39.42445152]
[1757420818247,39.33405598,4359.2,4359.1,33.2964]
[1757420818558,39.33405598,4359.2,4359.1,37.1294]